bitfinex/quotes_ETHUSD_20250721
["timestamp","ask_amount","ask_price","bid_price","bid_amount"]
[1753069809124,6.44240313,3752.2,3752.1,0.001]
[1753069809289,10.53140313,3752.2,3752.1,0.001]
[1753069809494,10.96650313,3752.2,3752.1,0.001]
[1753069809706,6.87750313,3752.2,3752.1,0.001]
[1753069809903,7.96650313,3752.2,3752.1,0.001]
[1753069814601,2.66531623,3751.9,3751.8,0.001]
[1753069814796,6.75331623,3751.9,3751.8,0.001]
[1753069815030,8.00161623,3751.9,3751.8,0.001]
[1753069815639,11.00161623,3751.9,3751.8,0.001]
[1753069820549,2.66522801,3752.1,3751.8,0.001]
[1753069820550,2.66523369,3752.1,3751.8,0.001]
[1753069820845,0.8276,3752.4,3751.8,0.001]
[1753069820846,0.1328,3751.9,3751.8,0.4495]
[1753069821052,0.1328,3751.9,3751.8,1.2076]
[1753069821346,0.1328,3751.9,3751.8,4.31549296]
[1753069821563,4.085,3752.4,3751.9,0.55]
[1753069821711,2.66517416,3752.1,3751.8,0.7591]
[1753069821909,2.66517416,3752.1,3751.8,0.001]
[1753069822531,2.66512363,3752.2,3751.8,0.001]
[1753069822825,0.1328,3752.1,3751.9,0.55]
[1753069823148,0.1328,3752.3,3752.0,0.4485]
[1753069823761,1.2911,3752.9,3751.9,0.23428]
[1753069823762,2.66462661,3752.9,3752.2,2.66510313]
[1753069823968,0.1328,3752.5,3752.2,2.66510313]
[1753069824261,0.1328,3752.5,3752.3,0.4485]
[1753069824628,0.1328,3752.5,3752.1,0.8271]
[1753069824853,0.1328,3752.5,3752.1,1.2756]
[1753069825052,0.1328,3752.5,3752.1,3.94072552]
[1753069826777,0.1328,3752.5,3752.2,2.66509778]
[1753069826969,0.1328,3752.5,3752.2,0.4485]
[1753069827170,0.1328,3752.5,3752.3,0.4485]
[1753069827664,0.1328,3752.5,3752.4,0.4485]
[1753069829089,0.1328,3752.5,3752.4,2.66496109]
[1753069829235,0.002,3752.9,3752.6,0.7634]
[1753069829437,0.1328,3752.8,3752.6,0.7634]
[1753069829862,0.1328,3752.8,3752.6,3.87671545]
[1753069830373,0.1328,3752.8,3752.6,1.2119]
[1753069830789,0.1328,3752.8,3752.6,3.87670691]
[1753069831348,0.1328,3752.8,3752.6,1.2119]
[1753069832278,0.1328,3752.8,3752.6,0.7634]
[1753069832469,0.1328,3752.8,3752.4,7.25095491]
[1753069832470,0.1328,3752.8,3752.5,0.55]
[1753069834662,0.002,3752.9,3752.0,0.7526]
[1753069834663,0.7901,3752.9,3752.0,0.7526]
[1753069834863,2.66531623,3751.9,3751.6,0.1338]
[1753069835047,2.79811623,3751.9,3751.6,0.001]
[1753069835253,3.26161623,3751.9,3751.6,0.001]
[1753069835578,7.37024543,3751.9,3751.6,0.001]
[1753069835754,5.66545832,3751.7,3751.6,0.001]
[1753069835955,6.45448752,3751.7,3751.6,0.001]
[1753069836154,6.89135832,3751.7,3751.6,0.001]
[1753069837451,0.7624,3751.7,3751.6,0.001]
[1753069837689,2.66545485,3751.8,3751.6,0.001]
[1753069837854,7.50325789,3752.0,3751.6,0.001]
[1753069837855,2.66545832,3751.7,3751.6,0.001]
[1753069838773,3.12895832,3751.7,3751.6,0.001]
[1753069839553,7.21395832,3751.7,3751.6,0.001]
[1753069839868,6.75045832,3751.7,3751.6,0.001]
[1753069840386,2.66545832,3751.7,3751.6,0.001]
[1753069840753,6.74945832,3751.7,3751.6,0.001]
[1753069841688,4.084,3751.7,3751.6,0.001]
[1753069842087,0.4596,3752.4,3751.6,1.2691]
[1753069842088,4.2168,3751.8,3751.6,1.2691]
[1753069842293,0.1328,3751.8,3751.6,1.25907827]
[1753069842479,0.1328,3752.3,3751.9,0.55]
[1753069842678,0.1328,3752.3,3752.0,1.0087]
[1753069842991,2.66497123,3752.4,3752.1,0.7821]
[1753069843155,4.086,3752.6,3751.8,0.7821]
[1753069843356,0.1328,3752.1,3751.9,0.55]
[1753069843661,0.1328,3752.3,3752.0,0.4587]
[1753069844492,0.1328,3752.3,3751.9,0.72918]
[1753069844703,0.1328,3752.3,3752.1,0.4587]
[1753069845057,4.087,3752.6,3752.2,3.67380313]
[1753069845288,0.1328,3752.7,3752.3,0.55]
[1753069845503,0.1328,3752.7,3752.3,0.02665032]
[1753069845711,0.1328,3752.7,3752.5,1.3461]
[1753069846475,0.002,3752.9,3752.7,0.55]
[1753069846670,0.002,3752.9,3752.7,3.21469991]
[1753069846987,0.002,3752.9,3752.8,1.0087]
[1753069847307,0.002,3752.9,3752.8,3.70002381]
[1753069847505,0.002,3752.9,3752.8,1.26610652]
[1753069848509,0.002,3752.9,3752.8,3.93078356]
[1753069848904,0.002,3752.9,3752.8,1.26610652]
[1753069849079,0.002,3752.9,3752.8,0.55]
[1753069849599,0.002,3752.9,3752.2,2.66503794]
[1753069849600,2.664822,3752.6,3752.1,0.8117]
[1753069849774,0.1328,3752.5,3752.1,0.8117]
[1753069850116,2.79769385,3752.5,3752.1,0.8117]
[1753069850280,0.1328,3752.5,3752.2,0.55]
[1753069850473,0.1328,3752.5,3752.2,0.4587]
[1753069850685,0.1328,3752.5,3752.2,1.0087]
[1753069851082,0.1328,3752.5,3752.3,1.0087]
[1753069852208,0.1328,3752.5,3752.3,3.67372272]
[1753069852414,0.1328,3752.5,3752.3,1.0087]
[1753069852574,0.1328,3752.5,3752.2,0.55]
[1753069854310,0.1328,3752.5,3752.1,0.551]
[1753069856505,0.1328,3752.5,3752.1,3.21616328]
[1753069856709,0.1328,3752.5,3752.3,0.55]
[1753069856889,0.1328,3752.5,3752.2,0.55]
[1753069857112,0.1328,3752.5,3752.3,0.4587]
[1753069857588,0.1328,3752.5,3752.4,3.12366109]
[1753069857794,0.1328,3752.5,3752.4,0.4587]
[1753069858199,0.1328,3752.5,3752.2,3.21507581]
[1753069858510,0.1328,3752.5,3752.3,2.66502618]
[1753069858721,0.1328,3752.5,3752.2,1.0087]
[1753069859219,0.1328,3752.5,3752.1,0.551]
[1753069859423,0.1328,3752.5,3752.1,3.21615962]
[1753069860030,0.1328,3752.5,3752.2,0.55]
[1753069860407,0.1328,3752.5,3752.1,3.21615143]
[1753069860613,0.1328,3752.5,3752.1,0.551]
[1753069861218,0.1328,3752.5,3752.3,0.55]
[1753069861407,0.1328,3752.5,3752.1,0.551]
[1753069861897,0.1328,3752.5,3752.1,3.21616245]
[1753069862232,0.1328,3752.5,3752.1,0.551]
[1753069862436,0.1328,3752.5,3752.1,3.21616914]
[1753069862932,0.1328,3752.5,3752.3,2.66503211]
[1753069863235,0.1328,3752.5,3752.3,0.55]
[1753069863594,0.1328,3752.5,3752.1,0.551]
[1753069864788,0.1328,3752.5,3752.1,3.2161705]
[1753069865827,0.1328,3752.5,3752.1,0.551]
[1753069866128,0.1328,3752.5,3752.1,0.001]
[1753069866332,2.66504086,3752.3,3752.1,0.001]
[1753069866535,0.1328,3752.3,3752.1,0.001]
[1753069866891,0.5924,3752.3,3752.1,0.001]
[1753069867188,3.25743787,3752.3,3752.1,0.001]
[1753069868109,0.5924,3752.3,3752.1,0.001]
[1753069868497,0.1328,3752.3,3752.1,0.001]
[1753069871234,2.79787517,3752.3,3752.1,0.001]
[1753069871436,2.66510313,3752.2,3752.1,0.001]
[1753069871739,0.5994,3752.3,3752.1,0.001]
[1753069871740,2.79784731,3752.3,3752.1,0.001]
[1753069871907,0.4666,3752.2,3752.1,0.001]
[1753069873194,0.1328,3752.3,3752.1,0.001]
[1753069874749,3.26445108,3752.3,3752.1,0.001]
[1753069875114,0.5994,3752.3,3752.1,0.001]
[1753069876105,0.1328,3752.3,3752.1,0.001]
[1753069877647,0.7796,3752.7,3752.1,0.001]
[1753069877648,0.002,3752.7,3752.4,2.66496109]
[1753069877848,0.002,3752.7,3752.6,3.68543118]
[1753069878146,0.002,3752.7,3752.6,6.90025023]
[1753069878501,0.002,3752.7,3752.6,7.37045023]
[1753069878697,0.002,3752.7,3752.6,8.14945023]
[1753069879026,0.002,3752.7,3752.6,12.77068546]
[1753069880638,0.002,3752.8,3752.7,3.21474804]
[1753069880935,0.002,3752.8,3752.7,8.53979552]
[1753069881142,0.002,3752.8,3752.7,8.51314804]
[1753069881309,1e-08,3753.3,3753.1,0.55]
[1753069881648,1e-08,3753.3,3753.2,11.73002423]
[1753069881836,1e-08,3753.3,3753.2,11.86282423]
[1753069882038,1e-08,3753.3,3753.2,12.33302423]
[1753069882247,1e-08,3753.3,3753.2,15.33302423]
[1753069882543,1e-08,3753.3,3753.2,17.60877455]
[1753069882962,1e-08,3753.3,3753.2,16.84957455]
[1753069883167,0.002,3753.4,3753.3,6.98802206]
[1753069883524,0.002,3753.4,3753.3,7.45822206]
[1753069885955,0.002,3753.4,3753.2,0.1328]
[1753069886142,0.8055,3753.4,3753.0,4.068]
[1753069886341,0.4666,3753.3,3753.0,0.55]
[1753069886545,0.002,3753.4,3753.3,2.66432206]
[1753069887080,0.002,3753.4,3753.3,0.55]
[1753069887243,0.002,3753.4,3753.1,4.07]
[1753069887449,0.4686,3753.4,3753.1,4.07]
[1753069888232,0.4686,3753.4,3753.2,0.55]
[1753069889255,0.002,3753.4,3753.2,0.55]
[1753069889470,0.002,3753.4,3753.2,3.2143834]
[1753069889860,0.002,3753.4,3753.3,4.47916528]
[1753069890066,0.002,3753.4,3753.3,4.58532206]
[1753069890382,0.002,3753.4,3753.3,4.11512206]
[1753069890744,0.002,3753.4,3753.3,3.34712206]
[1753069890938,0.002,3753.4,3753.3,0.6828]
[1753069891152,0.002,3753.4,3753.3,0.55]
[1753069894291,0.002,3753.4,3753.3,3.21432206]
[1753069894584,0.002,3753.4,3753.3,4.87249848]
[1753069894791,0.002,3753.4,3753.3,4.40229848]
[1753069895145,0.002,3753.4,3753.3,1.73797642]
[1753069895484,0.002,3753.4,3753.3,0.6828]
[1753069895793,0.002,3753.4,3753.3,1.0202]
[1753069895998,0.4686,3753.4,3753.3,0.55]
[1753069896304,3.13285107,3753.4,3753.3,0.55]
[1753069896590,0.4686,3753.4,3753.3,0.55]
[1753069896792,0.002,3753.4,3753.3,0.55]
[1753069897095,0.002,3753.4,3753.3,12.27709418]
[1753069897263,0.002,3753.4,3753.3,6.81732206]
[1753069898585,0.002,3753.4,3753.3,17.03709418]
[1753069898757,0.002,3753.4,3753.3,19.49088408]
[1753069900056,0.002,3753.4,3753.3,19.02068408]
[1753069900581,0.002,3753.4,3753.3,13.56091196]
[1753069900785,0.002,3753.4,3753.3,10.55712206]
[1753069900969,0.47,3753.4,3753.3,4.76]
[1753069901291,0.47,3753.4,3753.3,5.31]
[1753069901787,0.47,3753.4,3753.0,4.068]
[1753069901987,0.468,3753.3,3753.1,0.55]
[1753069905086,0.468,3753.3,3753.2,2.66439305]
[1753069905388,0.002,3753.4,3753.3,0.55]
[1753069905795,0.002,3753.4,3753.1,3.21443916]
[1753069906000,0.002,3753.4,3753.1,0.55]
[1753069906180,0.002,3753.4,3753.3,0.55]
[1753069906697,0.002,3753.4,3753.3,3.21432206]
[1753069906863,0.002,3753.4,3753.3,0.55]
[1753069908104,0.002,3753.4,3753.3,3.21432206]
[1753069908603,0.002,3753.4,3753.3,0.55]
[1753069908985,0.002,3753.4,3753.3,3.21432206]
[1753069909774,0.002,3753.4,3753.3,3.99072206]
[1753069910166,0.002,3753.4,3753.3,8.47467793]
[1753069910371,0.002,3753.4,3753.3,9.04527793]
[1753069910817,0.002,3753.4,3753.3,13.80527793]
[1753069911317,0.002,3753.5,3753.4,6.96905107]
[1753069911606,0.002,3753.5,3753.4,11.47185107]
[1753069911806,0.002,3753.5,3753.4,14.099385]
[1753069912105,0.002,3753.6,3753.5,3.21418009]
[1753069912411,0.002,3753.6,3753.5,4.50392189]
[1753069912574,0.002,3753.6,3753.5,4.63672189]
[1753069913180,0.002,3753.6,3753.5,10.0923993]
[1753069913380,0.002,3753.6,3753.5,12.45907152]
[1753069913881,0.002,3753.6,3753.5,15.45907152]
[1753069914574,0.022,3753.9,3753.6,6.21410912]
[1753069914772,0.022,3753.9,3753.8,3.99806717]
[1753069915013,0.022,3753.9,3753.8,4.13086717]
[1753069915171,0.022,3753.9,3753.8,7.04956195]
[1753069921058,0.022,3753.9,3753.8,6.61176195]
[1753069921275,0.022,3753.9,3753.8,7.04956195]
[1753069921617,0.022,3753.9,3753.8,10.04956195]
[1753069921934,0.022,3753.9,3753.8,10.04226195]
[1753069926165,0.022,3753.9,3753.8,13.66346195]
[1753069927640,0.022,3753.9,3753.8,12.88666195]
[1753069929819,0.022,3753.9,3753.8,13.32446195]
[1753069930179,1.2899,3753.9,3752.7,0.7828]
[1753069930464,0.4653,3753.8,3753.4,3.55]
[1753069930664,0.4653,3753.8,3753.4,3.0]
[1753069930826,0.4653,3753.8,3753.3,4.067]
[1753069931255,0.4653,3753.8,3753.5,0.55]
[1753069931465,0.4653,3753.8,3753.3,4.067]
[1753069931466,3.1292711,3753.8,3753.3,4.067]
[1753069931666,0.4653,3753.7,3753.5,0.55]
[1753069931965,0.4653,3753.7,3753.3,4.067]
[1753069932253,0.4653,3753.7,3753.4,3.55]
[1753069932421,0.4653,3753.7,3753.3,0.55]
[1753069932825,3.12936353,3753.7,3753.3,0.55]
[1753069933028,0.4653,3753.6,3753.3,0.55]
[1753069933458,0.4653,3753.5,3753.3,0.55]
[1753069933629,2.66406353,3753.7,3753.3,0.55]
[1753069933830,0.4653,3753.4,3753.2,4.065]
[1753069934050,2.66412404,3753.6,3753.3,0.55]
[1753069934766,3.12952474,3753.5,3753.3,0.55]
[1753069934969,0.4653,3753.4,3753.3,3.55]
[1753069936162,0.4653,3753.4,3753.2,4.065]
[1753069936163,0.4653,3753.4,3753.2,3.55]
[1753069936359,0.4653,3753.3,3753.2,3.55]
[1753069937226,1.2195,3753.3,3752.5,0.001]
[1753069937431,3.41901905,3752.6,3752.5,0.001]
[1753069937861,3.88431905,3752.6,3752.5,0.001]
[1753069939037,3.91094825,3752.6,3752.5,0.001]
[1753069941986,3.88431905,3752.6,3752.5,0.001]
[1753069942135,3.91094825,3752.6,3752.5,1e-08]
[1753069942459,6.91094825,3752.6,3752.5,1e-08]
[1753069942628,6.88431905,3752.6,3752.5,1e-08]
[1753069943990,7.96431905,3752.6,3752.5,1e-08]
[1753069944155,3.88431905,3752.6,3752.5,1e-08]
[1753069944354,7.96431905,3752.6,3752.5,1e-08]
[1753069945532,3.88431905,3752.6,3752.5,1e-08]
[1753069945740,7.96431905,3752.6,3752.5,1e-08]
[1753069946278,0.7542,3752.6,3752.5,1e-08]
[1753069946433,2.66481905,3752.6,3752.5,1e-08]
[1753069946634,3.13011905,3752.6,3752.5,1e-08]
[1753069947069,3.15674825,3752.6,3752.5,1e-08]
[1753069947794,3.97214825,3752.6,3752.5,1e-08]
[1753069947950,6.97214825,3752.6,3752.5,1e-08]
[1753069948140,6.94551905,3752.6,3752.5,1e-08]
[1753069959987,11.02551905,3752.6,3752.5,1e-08]
[1753069962183,6.44610313,3752.2,3752.1,1e-08]
[1753069962384,10.52510313,3752.2,3752.1,1e-08]
[1753069962567,10.97230313,3752.2,3752.1,1e-08]
[1753069963599,3.44541623,3751.9,3751.8,1e-08]
[1753069963798,7.55104543,3751.9,3751.8,1e-08]
[1753069963999,7.97161623,3751.9,3751.8,1e-08]
[1753069966577,10.97161623,3751.9,3751.8,1e-08]
[1753069967098,8.3063,3751.9,3751.6,1e-08]
[1753069967276,6.44335832,3751.7,3751.6,1e-08]
[1753069967476,2.66560042,3751.5,3751.4,1e-08]
[1753069967792,10.54712962,3751.5,3751.4,1e-08]
[1753069967993,10.96770042,3751.5,3751.4,1e-08]
[1753069968495,6.44350042,3751.5,3751.4,1e-08]
[1753069968701,6.74260042,3751.5,3751.4,1e-08]
[1753069968898,2.66560042,3751.5,3751.4,1e-08]
[1753069969093,6.74260042,3751.5,3751.4,1e-08]
[1753069971408,7.18980042,3751.5,3751.4,1e-08]
[1753069973308,3.11280042,3751.5,3751.4,1e-08]
[1753069973609,7.21442962,3751.5,3751.4,1e-08]
[1753069973815,6.74060042,3751.5,3751.4,1e-08]
[1753069974201,7.18780042,3751.5,3751.4,1e-08]
[1753069974375,6.74060042,3751.5,3751.4,1e-08]
[1753069975686,2.66560042,3751.5,3751.4,1e-08]
[1753069975906,6.73960042,3751.5,3751.4,1e-08]
[1753069979817,2.66560042,3751.5,3751.4,1e-08]
[1753069980019,6.73760042,3751.5,3751.4,1e-08]
[1753069982123,6.73760042,3751.5,3751.4,0.45280001]
[1753069982599,4.07,3751.5,3751.4,0.45280001]
[1753069983719,4.07,3751.5,3751.4,1.27560001]
[1753069991701,4.2028,3751.5,3751.4,1.27560001]
[1753069992033,4.2028,3751.5,3751.4,3.94127149]
[1753069992539,4.2028,3751.5,3751.4,1.27560001]
[1753069992842,4.2028,3751.5,3751.4,3.94127149]
[1753069993540,4.1968,3751.5,3751.4,1.27560001]
[1753069993838,4.1968,3751.5,3751.4,3.94127149]
[1753069994038,4.1968,3751.5,3751.4,4.55205448]
[1753069994733,4.1968,3751.5,3751.4,1.886383]
[1753069994944,4.1968,3751.5,3751.4,0.82280001]
[1753069995540,4.2234292,3751.5,3751.4,0.82280001]
[1753069996340,4.1968,3751.5,3751.4,0.82280001]
[1753069998014,4.2234292,3751.5,3751.4,0.82280001]
[1753069998937,4.1968,3751.5,3751.4,0.82280001]
[1753070000242,4.2234292,3751.5,3751.4,0.82280001]
[1753070000411,6.88902962,3751.5,3751.4,0.82280001]
[1753070000615,6.86240042,3751.5,3751.4,1e-08]
[1753070000846,7.31140042,3751.5,3751.4,1e-08]
[1753070003117,3.24940042,3751.5,3751.4,1e-08]
[1753070003316,3.27602962,3751.5,3751.4,1e-08]
[1753070003655,6.86340042,3751.5,3751.4,1e-08]
[1753070003831,7.31240042,3751.5,3751.4,1e-08]
[1753070005557,8.09760042,3751.5,3751.4,1e-08]
[1753070006330,3.58560042,3751.5,3751.4,1e-08]
[1753070006535,6.86440042,3751.5,3751.4,1e-08]
[1753070006718,2.80040042,3751.5,3751.4,1e-08]
[1753070006924,7.34002962,3751.5,3751.4,1e-08]
[1753070007125,7.31340042,3751.5,3751.4,1e-08]
[1753070007754,6.86440042,3751.5,3751.4,1e-08]
[1753070008728,7.31340042,3751.5,3751.4,1e-08]
[1753070009176,2.66567148,3751.4,3751.3,1e-08]
[1753070009326,6.97160068,3751.4,3751.3,1e-08]
[1753070009526,6.94497148,3751.4,3751.3,1e-08]
[1753070015663,10.55997148,3751.4,3751.3,1e-08]
[1753070015824,2.66567148,3751.4,3751.3,1e-08]
[1753070016032,7.17967148,3751.4,3751.3,1e-08]
[1753070016852,2.66567148,3751.4,3751.3,1e-08]
[1753070017063,2.66567148,3751.4,3751.3,0.78540001]
[1753070017258,6.73067148,3751.4,3751.3,0.78540001]
[1753070017885,6.73067148,3751.4,3751.3,1e-08]
[1753070018160,7.17967148,3751.4,3751.3,1e-08]
[1753070018539,2.66625678,3750.6,3750.2,0.30630001]
[1753070018737,4.0936292,3750.5,3750.0,3.55]
[1753070019471,4.0936292,3750.5,3750.0,3.21666058]
[1753070019677,4.0936292,3750.5,3749.9,3.55]
[1753070020070,4.0936292,3750.5,3750.1,2.68658737]
[1753070020269,4.0936292,3750.5,3750.1,1.27928565]
[1753070020654,4.0936292,3750.5,3750.2,0.4683]
[1753070021578,4.0936292,3750.5,3750.2,1.2451]
[1753070022575,4.0936292,3750.5,3750.2,0.7768]
[1753070023073,4.067,3750.5,3750.1,0.02]
[1753070023376,2.66640763,3750.4,3750.1,0.02]
[1753070023561,4.066,3750.3,3750.1,0.02]
[1753070024746,4.066,3750.3,3750.2,0.4683]
[1753070025476,4.066,3750.3,3750.1,0.021]
[1753070026171,4.066,3750.3,3750.1,0.4893]
[1753070026678,4.066,3750.3,3750.1,0.021]
[1753070027555,2.69315365,3750.2,3750.1,0.021]
[1753070028085,0.0266292,3750.2,3750.1,0.021]
[1753070028268,2.66642886,3750.4,3750.1,0.021]
[1753070028476,6.73052445,3750.2,3750.1,0.021]
[1753070028977,4.064,3750.2,3750.1,0.021]
[1753070029676,7.19622445,3750.2,3750.1,0.021]
[1753070030071,7.19822445,3750.2,3750.1,0.021]
[1753070033699,6.73252445,3750.2,3750.1,0.021]
[1753070034190,7.19822445,3750.2,3750.1,0.021]
[1753070034561,3.42094164,3750.4,3750.1,0.021]
[1753070034749,2.66624006,3750.6,3750.1,0.021]
[1753070034958,0.4657,3750.9,3750.1,1.2819]
[1753070035154,2.66632027,3750.5,3750.1,1.2819]
[1753070035390,2.66649993,3750.3,3750.1,1.2819]
[1753070035592,4.065,3750.2,3750.1,0.8136]
[1753070036304,6.75815365,3750.2,3750.1,0.8136]
[1753070036482,6.73152445,3750.2,3750.1,0.8136]
[1753070036803,4.065,3750.2,3750.1,0.8136]
[1753070036966,4.0916292,3750.2,3750.1,0.8136]
[1753070037174,6.75815365,3750.2,3750.1,0.021]
[1753070037499,6.73152445,3750.2,3750.1,0.021]
[1753070038202,4.065,3750.2,3750.1,0.021]
[1753070038367,7.785751,3750.2,3750.1,0.021]
[1753070038574,7.94842445,3750.2,3750.1,0.021]
[1753070038793,7.19722445,3750.2,3750.1,0.021]
[1753070040529,6.73152445,3750.2,3750.1,0.021]
[1753070040924,7.19722445,3750.2,3750.1,0.021]
[1753070041797,6.73252445,3750.2,3750.1,0.021]
[1753070042429,7.51172445,3750.2,3750.1,0.021]
[1753070042637,7.97742445,3750.2,3750.1,0.021]
[1753070045945,7.97742445,3750.2,3749.8,0.001]
[1753070045946,3.43463777,3749.9,3749.8,1e-08]
[1753070046149,10.52626697,3749.9,3749.8,1e-08]
[1753070046352,10.96533777,3749.9,3749.8,1e-08]
[1753070047652,11.16373734,3749.9,3749.8,1e-08]
[1753070056657,7.09873734,3749.9,3749.8,1e-08]
[1753070056991,11.16473734,3749.9,3749.8,1e-08]
[1753070058377,6.93113734,3749.9,3749.8,1e-08]
[1753070060828,6.73273777,3749.9,3749.8,1e-08]
[1753070061184,6.93477916,3749.9,3749.8,1e-08]
[1753070062183,6.73273777,3749.9,3749.8,1e-08]
[1753070062735,2.66673777,3749.9,3749.8,1e-08]
[1753070062895,0.002,3750.3,3749.8,1e-08]
[1753070063229,4.066,3750.2,3749.9,0.8246]
[1753070063395,0.002,3750.3,3750.0,0.4732]
[1753070063600,4.066,3750.2,3750.1,0.39645168]
[1753070063800,0.002,3750.3,3750.1,1.68615168]
[1753070064000,0.002,3750.3,3750.2,3.48302445]
[1753070064198,4.068,3750.3,3750.2,3.89192445]
[1753070064403,0.002,3750.3,3750.2,3.89192445]
[1753070064713,0.002,3750.3,3750.2,4.95627952]
[1753070065225,0.002,3750.3,3750.2,5.50627952]
[1753070067121,0.002,3750.3,3750.2,8.50627952]
[1753070070501,0.002,3750.3,3750.2,8.63907952]
[1753070072200,0.002,3750.3,3750.2,12.70307952]
[1753070073303,0.002,3751.1,3750.9,0.55]
[1753070073502,0.002,3751.1,3750.8,3.97259789]
[1753070073503,0.002,3751.1,3751.0,3.66821553]
[1753070074214,0.002,3751.1,3751.0,4.14141553]
[1753070075837,0.002,3751.1,3751.0,4.93501553]
[1753070076043,0.002,3751.1,3751.0,5.06781553]
[1753070077316,0.002,3751.1,3751.0,5.09447508]
[1753070077725,0.002,3751.1,3751.0,5.06781553]
[1753070078838,0.002,3751.1,3751.0,8.06781553]
[1753070079038,0.002,3751.1,3751.0,12.13181553]
[1753070079541,0.002,3751.4,3751.3,3.21574254]
[1753070079726,0.002,3751.4,3751.3,16.77191577]
[1753070079904,0.002,3751.4,3751.3,17.35125835]
[1753070081603,0.002,3751.4,3751.3,13.28725835]
[1753070081808,0.002,3751.4,3751.3,17.35025835]
[1753070082033,0.002,3751.4,3751.3,22.11025835]
[1753070083132,0.002,3751.4,3751.3,18.04725835]
[1753070083332,0.002,3751.4,3751.3,22.11025835]
[1753070085320,0.022,3751.9,3751.8,2.66538728]
[1753070085521,0.022,3751.9,3751.8,19.54787845]
[1753070085730,0.02,3752.9,3752.1,7.00947416]
[1753070085939,0.02,3752.9,3752.1,11.07247416]
[1753070086138,0.02,3752.9,3752.1,11.67017416]
[1753070086351,0.02,3752.9,3752.1,14.2151098]
[1753070087361,0.02,3752.9,3752.2,6.98990313]
[1753070087521,0.02,3752.9,3752.2,10.67844043]
[1753070087846,0.02,3752.9,3752.2,11.14334043]
[1753070090951,0.02,3752.9,3752.2,14.88844043]
[1753070091150,0.4473,3752.8,3752.2,20.97357545]
[1753070091349,0.4473,3752.8,3752.2,21.52357545]
[1753070092016,0.4673,3752.9,3752.2,21.52357545]
[1753070092652,0.4673,3752.9,3752.2,17.46157545]
[1753070092826,0.4673,3752.9,3752.2,21.52257545]
[1753070093225,3.13190683,3752.9,3752.2,21.52257545]
[1753070093944,0.4673,3752.9,3752.2,21.52257545]
[1753070094143,0.4673,3752.9,3752.2,17.46157545]
[1753070094326,0.4673,3752.9,3752.2,21.52257545]
[1753070095323,0.4673,3752.9,3752.2,0.55]
[1753070095324,0.8327,3752.7,3752.2,0.55]
[1753070095523,0.4473,3752.6,3752.2,3.55]
[1753070095729,0.8327,3752.7,3752.2,3.21510313]
[1753070095958,0.4493,3752.7,3752.2,3.21510313]
[1753070097173,0.4493,3752.7,3752.2,3.55]
[1753070097373,0.4493,3752.7,3752.2,3.21510313]
[1753070097654,0.4493,3752.7,3752.2,10.27610313]
[1753070097836,0.4493,3752.7,3752.2,12.06099717]
[1753070098464,0.4493,3752.7,3752.2,9.39589404]
[1753070099059,3.11405163,3752.7,3752.2,9.39589404]
[1753070099464,0.4493,3752.3,3752.2,3.55]
[1753070099682,0.4493,3752.3,3752.2,7.611]
[1753070100161,0.002,3752.3,3752.2,7.611]
[1753070100862,0.4493,3752.3,3752.2,7.611]
[1753070101472,3.11433211,3752.3,3752.2,0.55]
[1753070101666,1.2725,3752.3,3752.0,4.611]
[1753070101847,0.4473,3752.2,3752.0,4.611]
[1753070102268,0.4473,3752.1,3752.0,4.611]
[1753070102648,0.4473,3752.1,3752.0,0.55]
[1753070105359,0.002,3752.3,3752.0,4.3827]
[1753070105564,0.002,3752.3,3752.2,6.21510313]
[1753070105764,0.002,3752.3,3752.2,10.40890313]
[1753070106140,0.002,3752.3,3752.2,6.34790313]
[1753070106348,0.002,3752.3,3752.2,11.02207275]
[1753070108266,0.002,3752.3,3752.2,15.08307275]
[1753070108650,0.002,3752.3,3752.2,15.54797275]
[1753070109281,0.002,3752.3,3752.2,12.88286962]
[1753070109493,0.002,3752.3,3752.2,15.08307275]
[1753070111509,0.002,3752.3,3752.2,15.51677275]
[1753070112355,0.002,3752.3,3752.2,16.30427275]
[1753070119095,0.002,3752.7,3752.6,4.03191905]
[1753070119413,0.002,3752.7,3752.6,12.90958661]
[1753070119604,0.002,3752.7,3752.6,12.88293842]
[1753070119755,0.002,3752.7,3752.6,13.31663842]
[1753070121561,0.01865535,3752.9,3752.8,3.21467704]
[1753070121785,0.01865535,3752.9,3752.8,10.30132381]
[1753070122094,0.01865535,3752.9,3752.8,12.56490326]
[1753070123398,0.01865535,3752.9,3752.8,17.32490326]
[1753070125601,0.01865535,3752.9,3752.8,17.75860326]
[1753070127229,0.01865535,3752.9,3752.8,17.32490326]
[1753070130503,0.45715535,3752.9,3752.8,8.819]
[1753070131218,0.45715535,3752.9,3752.8,9.369]
[1753070131417,0.45715535,3752.9,3752.8,5.31]
[1753070131621,3.12176138,3752.9,3752.8,4.76]
[1753070132122,3.92756138,3752.9,3752.8,4.76]
[1753070133088,3.92756138,3752.9,3752.4,4.059]
[1753070133089,2.66469361,3752.8,3752.4,4.059]
[1753070133293,0.8165,3752.7,3752.5,0.55]
[1753070133502,1.255,3752.7,3752.4,0.55]
[1753070133712,2.66490928,3752.5,3752.4,0.55]
[1753070133895,2.66496109,3752.4,3752.3,0.55]
[1753070134093,3.46253211,3752.3,3752.2,0.1328]
[1753070134299,2.66510313,3752.2,3752.1,0.001]